{"text_format":"1","workbook":"xlsx","n_sheets":2,"sheets":["№3","Лист1"],"not_rendered":{"charts":0,"images":0,"macros":0,"external_links":0,"defined_names":2,"comments":0,"pivot_tables":0},"unopened":[],"bounds":{"document_bytes":16777216,"sheet_cells":100000,"rows_first":2000,"rows_last":500,"rows_between":2000,"halvings":0,"cell_chars":16384,"cell_head_chars":4096},"cells_cut":0,"cells_raw":0,"read":"whole","date_system":"1900"}

{"sheet":"№3","index":0,"n_rows":248,"n_cols":11,"rows_kept":248,"cut":false,"hidden":false,"merged":[[3,2,3,8],[5,3,5,8],[249,4,249,8],[11,0,11,8],[12,0,12,8],[9,0,9,8],[10,0,10,8],[13,6,13,8]]}
[]
[null,null,null,null,null,null,null,null,"   Приложение №3  "]
[null,"к решению Совета депутатов Борковского сельского поселения",null,"к Решению Совета депутатов Борковского сельского  поселения"]
[null,"депутатов Борковского сельского поселения от  ___12.2015  №__","      \"Об утверждении годового отчета за 2016 год  Борковского сельского "]
[null,"\"О бюджете Борковского сельского поселения на 2016 год\"  "]
[null,null,null,"поселения\" от  2017 №"]
[]
[]
[]
["Распределение бюджетных ассигнований из бюджета сельского поселения                                                           "]
["за 2016 год и по разделам, подразделам, целевым статьям и видам расходов                                                                     "]
["функциональной классификации расходов бюджетов Российской Федерации   "]
[]
["Наименование",null,"Рз","ПР","ЦСР","ВР","Сумма",null,null,"2009 год","2010 год"]
[null,null,null,null,null,null,"план","факт","% исполнения"]
["Администрация Борковского сельского поселения"]
["Общегосударственные вопросы",null,"01",null,null,null,{"$f":"G20+G32+G74+G83+G87","v":4432.8999999999996},{"$f":"H20+H32+H74+H83+H87","v":4425.7},100.16,{"$f":"J20+#REF!+#REF!+J32+#REF!++#REF!+#REF!+#REF!+#REF!","v":{"$error":"#REF!"}},{"$f":"K20+#REF!+#REF!+K32+#REF!++#REF!+#REF!+#REF!+#REF!","v":{"$error":"#REF!"}}]
["Функционирование высшего должностного лица "]
["субъекта Российской Федерации и  "]
["муниципального образования",null,{"$f":"C$17","v":"01"},"02",null,null,{"$f":"G21","v":670.1},{"$f":"H21","v":670.1},{"$f":"G20/H20*100","v":100},{"$f":"#REF!","v":{"$error":"#REF!"}},{"$f":"#REF!","v":{"$error":"#REF!"}}]
["Глава муниципального образования",null,{"$f":"C$17","v":"01"},{"$f":"D$20","v":"02"},"20 1 00 00000",null,{"$f":"G23","v":670.1},{"$f":"H23","v":670.1},100,{"$f":"#REF!","v":{"$error":"#REF!"}},{"$f":"#REF!","v":{"$error":"#REF!"}}]
["Расходы на обеспечение функций органов "]
["местного самоуправления",null,"01","02","20 1 00 01000",null,{"$f":"G24+G28+G27","v":670.1},{"$f":"H24+H28+H27","v":670.1},100]
["Фонд оплаты труда государственных (муниципальных) органов",null,{"$f":"C$17","v":"01"},{"$f":"D$20","v":"02"},"20 1 00 01000","121",467,467,100]
["Взносы по обязательном у социальному страхованию на выплаты"]
["денежного содержания и иные выплаты работникам"]
["государственных (муниципальных) органов",null,"01","02","20 1 00 01000","129",163,163,100]
["Иные выплаты персоналу, за исключением фонда оплаты труда",null,{"$f":"C$17","v":"01"},{"$f":"D$20","v":"02"},"20 1 00 01000","122",40.1,40.1,100]
["Функционирование Правительства Российской "]
["Федерации, высших исполнительных органов"]
["государственной власти субъектов Российской  "]
["Федерации, местных администраций",null,{"$f":"C$17","v":"01"},"04",null,null,{"$f":"G34+G59+G69","v":3540.7999999999993},{"$f":"H34+H59+H69","v":3534.6},100.17,{"$f":"J34","v":{"$error":"#REF!"}},{"$f":"K34","v":{"$error":"#REF!"}}]
["Расходы на содержаниеаппарата органов местного"]
["самоуправления",null,{"$f":"C$17","v":"01"},{"$f":"D32","v":"04"},"20 2 00 00000",null,{"$f":"G35+G38+G39+G41+G42+G50+G51+G52+G53","v":3383.9999999999995},3377.8,100.18,{"$f":"#REF!+#REF!","v":{"$error":"#REF!"}},{"$f":"#REF!+#REF!","v":{"$error":"#REF!"}}]
["Фонд оплаты труда государственных (муниципальных) органов",null,"01","04","20 2 00 01000","121",1707.8,1707.8,100]
["Взносы по обязательном у социальному страхованию на выплаты"]
["денежного содержания и иные выплаты работникам"]
["государственных (муниципальных) органов",null,"01","04","20 2 00 01000","129",520.79999999999995,520.79999999999995,100]
["Иные выплаты персоналу, за исключением фонда оплаты труда",null,"01","04","20 2 00 01000","122",81.599999999999994,81.599999999999994,100]
["Закупка товаров, работ, услуг в области информационных техно"]
["логий ",null,"01","04","20 2 00 01000","242",298.10000000000002,298.10000000000002,100]
["Прочая закупка товаров,работ и услуг для муниципальных нужд",null,"01",{"$f":"D32","v":"04"},"20 2 00 01000","244",706.3,700.1,100.89]
["Областной резервный фонд на ликвидацию угрозы и",null,null,null,null,null,null,null,{"$error":"#DIV/0!"}]
["последствий чрезвычайных ситуаций",null,{"$f":"C$17","v":"01"},{"$f":"#REF!","v":{"$error":"#REF!"}},{"$f":"#REF!","v":{"$error":"#REF!"}},null,{"$f":"G45","v":0},null,{"$error":"#DIV/0!"},{"$f":"J45","v":0},{"$f":"K45","v":0}]
["Прочие расходы",null,{"$f":"C$17","v":"01"},{"$f":"#REF!","v":{"$error":"#REF!"}},{"$f":"#REF!","v":{"$error":"#REF!"}},"013",{"$f":"3317-3317","v":0},null,{"$error":"#DIV/0!"},{"$f":"3543-3543","v":0},{"$f":"3773-3773","v":0}]
["Исполнение судебных актов РФ и мировых соглашений по "]
["возмещению вреда, причиненного в результате незаконных "]
["действий (бездействия) органов государственной власти либо"]
["должностных лиц этих органов, а также в результате деятельности"]
["казенных учреждений",null,{"$f":"C$17","v":"01"},{"$f":"D34","v":"04"},"20 2 00 01000","831",4,4,100]
["Уплата налога на имущество организаций",null,{"$f":"C$17","v":"01"},"04","20 2 00 01000","851",2,2,100]
["Уплата прочих налогов, сборов и иных обязательных платежей",null,"01","04","20 2 00 01000","852",3.3,3.3,100]
["Уплата иных платежей",null,"01","04","20 2 00 01000","853",60.1,60.1,100]
["Субвенция на возмещению затрат по содержанию штатных "]
["единиц, осуществляющих переданные отдельные государ"]
["ственные полномочия области по организации деятельно "]
["сти по сбору ( в том числе раздельному сбору) и транспорти"]
["рованию твердых коммунальных отходов городских и сель"]
["ских поселений",null,"01","04","20 2 00 70280",null,{"$f":"+G60+G63+G65","v":151.69999999999999},{"$f":"+H60+H63+H65","v":151.69999999999999},100]
["Фонд оплаты труда государственных (муниципальных) органов",null,"01","04","20 2 00 70280","121",111.6,111.6,100]
["Взносы по обязательном у социальному страхованию на выплаты"]
["денежного содержания и иные выплаты работникам"]
["государственных (муниципальных) органов",null,"01","04","20 2 00 70280","129",32.6,32.6,100]
["Прочая закупка товаров,работ и услуг для муниципальных нужд"]
[null,null,"01","04","20 2 00 70280","244",7.5,7.5,100]
["Иные межбюджетные трансферты городским и сельским "]
["поселениям области на частичную компенсацию дополни"]
["тельных расходов на повышение оплаты труда работников "]
["бюджетной сферы",null,"01","04","20 2 00 71420",null,5.0999999999999996,5.0999999999999996,100]
["Фонд оплаты труда государственных (муниципальных) органов",null,"01","04","20 2 00 71420","121",3.9,3.9,100]
["Взносы по обязательном у социальному страхованию на выплаты"]
["денежного содержания и иные выплаты работникам"]
["государственных (муниципальных) органов",null,"01","04","20 2 00 71420","129",1.2,1.2,100]
["Обеспечение деятельности финансовых, налоговых ",null,"01","06",null,null,{"$f":"G81","v":217},"217,0",100]
["и таможенных органов и органов финансового (финансово-"]
["бюджетного) надзора "]
["Иные межбюджетные трансферты из бюджетов поселений"]
["бюджету муниципального района на возмещение затрат по "]
["содержанию штатных единиц, осуществляющих переданные ",null,null,"                    "]
["полномочия поселения по внешнему муниципальному"]
["финансовому контролю",null,"01","06","20 4 00 93020",null,{"$f":"+G82","v":217},"217,0",100]
["Иные межбюджетные трансферты ",null,"01","06","20 4 00 93020","540",217,"217,0",{"$f":"G82/H82*100","v":100}]
["Резервные фонды",null,"01","11",null,null,{"$f":"G85","v":1},"0,00"]
["Прочие непрограммные расходы",null,"01","11","20 5 00 00000",null,1,"0,00"]
["Резервные фонды местных администраций",null,"01","11","20 5 00 25030",null,{"$f":"G86","v":1},"0,00"]
["Резервные  средства",null,"01","11","20 5 00 25030","870",1,"0,00"]
["Другие общегосударственные вопросы",null,"01","13",null,null,4,4,100]
["Прочие непрограммные расходы",null,"01","13","20 5 00 00000",null,4,4,100]
["Содержание и обслуживание казны муниципального "]
["образования",null,"01","13","20 5 00 25150",null,4,4,100]
["Прочая закупка товаров,работ и услуг для муниципальных"]
["нужд",null,"01","13","20 5 00 25150","244",4,4,100]
["Национальная оборона",null,"02",null,null,null,{"$f":"G94","v":178},{"$f":"H94","v":178},100]
["Мобилизационная и вневойсковая подготовка",null,"02","03",null,null,{"$f":"+G97","v":178},{"$f":"+H97","v":178},100]
["Прочие непрограммные расходы",null,"02","03","20 5 00 00000",null,178,178,100]
["Осуществление первичного воинского учета на"]
["территории, где отсутствуют воинские комиссариаты",null,"02","03","20 5 00 51180",null,{"$f":"G98+G103+G101","v":178},{"$f":"H98+H103+H101","v":178},100]
["Фонд оплаты труда государственных (муниципальных) органов",null,"02","03","20 5 00 51180","121",129.69999999999999,129.69999999999999,100]
["Взносы по обязательном у социальному страхованию на выплаты"]
["денежного содержания и иные выплаты работникам"]
["государственных (муниципальных) органов",null,"02","03","20 5 00 51180","129",39.200000000000003,39.200000000000003,100]
["Прочая закупка товаров,работ и услуг для муниципальных"]
["нужд",null,"02","03","20 5 00 51180","244",9.1,9.1,100]
["Национальная безопасность и правоохранительная"]
[" деятельность",null,"03",null,null,null,{"$f":"G106+G114","v":144},{"$f":"H106+H114","v":144},100,{"$f":"#REF!+#REF!+J114+#REF!","v":{"$error":"#REF!"}},{"$f":"#REF!+#REF!+K114+#REF!","v":{"$error":"#REF!"}}]
["Защита населения и территории от чрезвычайных ",null,"03","09",null,null,{"$f":"G109","v":28.5},{"$f":"H109","v":28.5},100]
["ситуаций природного и техногенного характера,"]
["гражданская оборона"]
["Прочие непрограммные расходы",null,"03","09","20 5 00 00000",null,28.5,28.5,100]
["Расходы на выполнение работ по разработке расчета разме"]
["ра вреда для физических и юридических лиц",null,"03","09","20 5 00 14020",null,28.5,28.5,100]
["Прочая закупка товаров,работ и услуг для муниципальных"]
["нужд",null,"03","09","20 5 00 14020","244",28.5,28.5,100]
["Обеспечение пожарной безопасности",null,{"$f":"C$105","v":"03"},"10",null,null,{"$f":"+G118","v":115.5},{"$f":"+H118","v":115.5},100,{"$f":"#REF!+#REF!+#REF!","v":{"$error":"#REF!"}},{"$f":"#REF!+#REF!+#REF!","v":{"$error":"#REF!"}}]
["Муниципальная программа \"Устойчивое развитие "]
["программы  территории Борковского сельского",null,null,null,null,null,null,null,null,{"$f":"J120","v":238496},{"$f":"K120","v":254189}]
[" поселения на 2014-2016гг.\"",null,"03",10,"01 0 00 00000",null,115.5,115.5,100]
["Мероприятия в области противопожарной безопасности",null,{"$f":"C$105","v":"03"},{"$f":"D114","v":"10"},"01 0 00 25110",null,{"$f":"G120","v":115.5},{"$f":"H120","v":115.5},100]
["Прочая закупка товаров,работ и услуг для "]
["муниципальных нужд",null,{"$f":"C$105","v":"03"},{"$f":"D114","v":"10"},"01 0 00 25110","244",115.5,115.5,100,{"$f":"24567+213947-18","v":238496},{"$f":"27116+227094-21","v":254189}]
["Субсидирование процентных ставок по ",null,null,null,null,null,null,null,{"$error":"#DIV/0!"}]
["привлеченным кредитам в российских кредитных",null,null,null,null,null,null,null,{"$error":"#DIV/0!"}]
["организациях на развитие животноводства",null,{"$f":"#REF!","v":{"$error":"#REF!"}},{"$f":"#REF!","v":{"$error":"#REF!"}},{"$f":"#REF!","v":{"$error":"#REF!"}},"356",null,null,{"$error":"#DIV/0!"}]
["Субсидирование процентных ставок по ",null,null,null,null,null,null,null,{"$error":"#DIV/0!"}]
["привлеченным кредитам в российских кредитных",null,null,null,null,null,null,null,{"$error":"#DIV/0!"}]
["организациях на развитие малых форм ",null,null,null,null,null,null,null,{"$error":"#DIV/0!"}]
["хозяйствования в агропромышленном комплексе",null,{"$f":"#REF!","v":{"$error":"#REF!"}},{"$f":"#REF!","v":{"$error":"#REF!"}},{"$f":"#REF!","v":{"$error":"#REF!"}},"357",null,null,{"$error":"#DIV/0!"}]
["Субсидирование части затрат на приобретение",null,null,null,null,null,null,null,{"$error":"#DIV/0!"}]
["дизельного топлива, использованного на ",null,null,null,null,null,null,null,{"$error":"#DIV/0!"}]
["проведение сезонных сельскохозяйственных работ",null,{"$f":"#REF!","v":{"$error":"#REF!"}},{"$f":"#REF!","v":{"$error":"#REF!"}},{"$f":"#REF!","v":{"$error":"#REF!"}},"355",null,null,{"$error":"#DIV/0!"}]
["Субсидирование процентных ставок по кредитам, ",null,null,null,null,null,null,null,{"$error":"#DIV/0!"}]
["полученным в российских кредитных организациях ",null,null,null,null,null,null,null,{"$error":"#DIV/0!"}]
["на развитие животноводства и промышленного ",null,null,null,null,null,null,null,{"$error":"#DIV/0!"}]
["рыбоводства",null,{"$f":"#REF!","v":{"$error":"#REF!"}},{"$f":"#REF!","v":{"$error":"#REF!"}},{"$f":"#REF!","v":{"$error":"#REF!"}},"356",null,null,{"$error":"#DIV/0!"}]
["Субсидирование процентных ставок по кредитам, ",null,null,null,null,null,null,null,{"$error":"#DIV/0!"}]
["полученным в российских кредитных организациях, ",null,null,null,null,null,null,null,{"$error":"#DIV/0!"}]
["и займам, полученным в сельскохозяйственных",null,null,null,null,null,null,null,{"$error":"#DIV/0!"}]
["кредитных потребительских кооперативах, ",null,null,null,null,null,null,null,{"$error":"#DIV/0!"}]
["на развитие малых форм хозяйствования в",null,null,null,null,null,null,null,{"$error":"#DIV/0!"}]
["агропромышленном комплексе",null,{"$f":"#REF!","v":{"$error":"#REF!"}},{"$f":"#REF!","v":{"$error":"#REF!"}},{"$f":"#REF!","v":{"$error":"#REF!"}},"357",null,null,{"$error":"#DIV/0!"}]
["Субсидии на поддержку племенного ",null,null,null,null,null,null,null,{"$error":"#DIV/0!"}]
["животноводства",null,{"$f":"#REF!","v":{"$error":"#REF!"}},{"$f":"#REF!","v":{"$error":"#REF!"}},{"$f":"#REF!","v":{"$error":"#REF!"}},"627",null,null,{"$error":"#DIV/0!"}]
["Возмещение части затрат на уплату процентов",null,null,null,null,null,null,null,{"$error":"#DIV/0!"}]
["по кредитам, полученным на срок до пяти лет",null,null,null,null,null,null,null,{"$error":"#DIV/0!"}]
["в российских кредитных организациях ",null,null,null,null,null,null,null,{"$error":"#DIV/0!"}]
["на приобретение племенного скота, племенного",null,null,null,null,null,null,null,{"$f":"G146/H146*100","v":{"$error":"#DIV/0!"}}]
["материала рыб, техники и оборудования",null,null,null,null,null,null,null,{"$error":"#DIV/0!"}]
["для животноводческих комплексов и организаций,",null,null,null,null,null,null,null,{"$error":"#DIV/0!"}]
["осуществляющих промышленное рыбоводство",null,{"$f":"#REF!","v":{"$error":"#REF!"}},{"$f":"#REF!","v":{"$error":"#REF!"}},{"$f":"#REF!","v":{"$error":"#REF!"}},"628",null,null,{"$error":"#DIV/0!"}]
["Национальная экономика",null,"04",null,null,null,{"$f":"+G152","v":1931.7},{"$f":"+H152","v":1931.7},100]
[null,null,null,null,null,null,null,null,{"$error":"#DIV/0!"}]
["Дорожное хозяйство(дорожные фонды)",null,"04","09",null,null,{"$f":"+G155","v":1931.7},{"$f":"+H155","v":1931.7},100]
["Муниципальная программа \"Устойчивое развитие "]
["программы  территории Борковского сельского"]
[" поселения на 2014-2016гг.\"",null,"04","09","01 0 00 00000",null,{"$f":"+G157+G161+G165","v":1931.7},{"$f":"+H157+H161+H165","v":1931.7},100]
["Капитальный ремонт и ремонт автомобильных дорог общего пользования "]
["пользования местного значения в границах населенных пунктов ",null,"04","09 ","01 0 00 S5170",null,{"$f":"G159","v":658.6},{"$f":"H159","v":658.6},100]
["Прочая закупка товаров,работ и услуг для "]
["муниципальных нужд",null,"04","09 ","01 0 00 S5170","244",658.6,658.6,100]
["Содержание автомобильных дорог общего пользования местного значения населеных пунктов"]
["значения в границах населенных пунктов",null,"04","09","01 0 00 25160",null,{"$f":"+G163","v":150.1},{"$f":"+H163","v":150.1},100]
["Прочая закупка товаров,работ и услуг для "]
["муниципальных нужд",null,"04","09 ","01 0 00 25160","244",150.1,150.1,100]
["Осуществление дорожной деятельности в отношении "]
["автомобильных дорог общего пользования местного значения",null,"04","09","01 0 01 71520",null,{"$f":"G167","v":1123},{"$f":"H167","v":1123},100]
["Прочая закупка товаров,работ и услуг для "]
["муниципальных нужд",null,"04","09 ","01 0 01 71520","244",1123,1123,100]
["Жилищно-коммунальное хозяйство",null,"05",null,null,null,{"$f":"G169+G177","v":2656.7000000000003},{"$f":"H169+H177","v":2656.7000000000003},100,{"$f":"#REF!+J177+#REF!","v":{"$error":"#REF!"}},{"$f":"#REF!+K177+#REF!","v":{"$error":"#REF!"}}]
["Коммунальное хозяйство",null,"05","02",null,null,{"$f":"+G175","v":337.5},{"$f":"+H175","v":337.5},100]
[null,null,null,null,null,null,null,null,{"$error":"#DIV/0!"}]
["Муниципальная программа \"Устойчивое развитие "]
["программы  территории Борковского сельского"]
[" поселения на 2014-2016гг.\"",null,"05","02","01 0 00 00000 ",null,{"$f":"G175","v":337.5},{"$f":"H175","v":337.5},100]
["Компенсация выпадающих доходов организациям,"]
["предоставляющим населению услуги общественных бань ",null,"05","02","01 0 00 62200",null,{"$f":"G176","v":337.5},{"$f":"H176","v":337.5},100]
["Субсидии юридическим лицам",null,"05","02","01 0 00 62200","810",337.5,337.5,100]
["Благоустройство",null,{"$f":"C$168","v":"05"},"03",null,null,{"$f":"+G182+G185+G188+G192","v":2319.2000000000003},{"$f":"+H182+H185+H188+H192","v":2319.2000000000003},100,{"$f":"#REF!+#REF!+#REF!+#REF!+J181","v":{"$error":"#REF!"}},{"$f":"#REF!+#REF!+#REF!+#REF!+K181","v":{"$error":"#REF!"}}]
["Муниципальная программа \"Устойчивое развитие "]
["программы  территории Борковского сельского"]
[" поселения на 2014-2016гг.\"",null,"05","03","01 0 00 00000",null,2266.4,2266.4,100]
["Организация уличного освещения с использованием ",null,null,null,null,null,null,null,null,{"$f":"#REF!","v":{"$error":"#REF!"}},{"$f":"#REF!","v":{"$error":"#REF!"}}]
["новых технологий",null,{"$f":"C$168","v":"05"},{"$f":"D177","v":"03"},"01 0 00 25190",null,{"$f":"G184","v":2087},{"$f":"H184","v":2087},100]
["Прочая закупка товаров,работ и услуг для муниципальных"]
["нужд",null,{"$f":"C$168","v":"05"},{"$f":"D182","v":"03"},"01 0 00 25190","244",2087,2087,100]
["Озеленение территории поселения",null,"05","03","01 0 00 25210",null,{"$f":"G187","v":"0"},{"$f":"H187","v":"0"}]
["Прочая закупка товаров,работ и услуг для муниципальных"]
["нужд",null,"05","03","01 0 00 25210","244","0","0"]
["Организация ритуальных услуг и содержание мест захоронения ",null,"05","03","01 0 00 25220",null,{"$f":"G190","v":148.4},{"$f":"H190","v":148.4},100]
["Прочая закупка товаров,работ и услуг для муниципальных"]
["муниципальных нужд",null,"05","03","01 0 00 25220","244",148.4,148.4,100]
["Прочие мероприятия по благоустройству"]
["городских округов и поселений",null,"05","03","01 0 00 25230",null,{"$f":"G193","v":83.8},{"$f":"H193","v":83.8},100]
["Прочая закупка товаров, работ и услуг для муниципальных нужд",null,"05","03","01 0 00 25230","244",83.8,83.8,100]
["Образование",null,"07",null,null,null,{"$f":"G195+G199","v":17.2},{"$f":"H195+H199","v":17.2},100,{"$f":"#REF!+#REF!+#REF!+#REF!+#REF!+J195","v":{"$error":"#REF!"}},{"$f":"#REF!+#REF!+#REF!+#REF!+#REF!+K195","v":{"$error":"#REF!"}}]
["Молодежная политика и оздоровление детей",null,{"$f":"C$194","v":"07"},"07",null,null,{"$f":"G196","v":4},{"$f":"H196","v":4},100,{"$f":"#REF!+#REF!+#REF!","v":{"$error":"#REF!"}},{"$f":"#REF!+#REF!+#REF!","v":{"$error":"#REF!"}}]
["Прочие непрограммные расходы",null,"07","07","20 5 00 00000",null,4,4,100]
["Реализация  мероприятий для детей и молодежи",null,{"$f":"C$194","v":"07"},{"$f":"D$195","v":"07"},"20 5 00 25090",null,{"$f":"G198","v":4},{"$f":"H198","v":4},100,{"$f":"#REF!+J198","v":{"$error":"#REF!"}},{"$f":"#REF!+K198","v":{"$error":"#REF!"}}]
["Прочая закупка товаров,работ и услуг для муниципальных нужд",null,{"$f":"C$194","v":"07"},{"$f":"D$195","v":"07"},"20 5 00 25090","244",4,4,100]
["Другие вопросы в области образования",null,"07","09",null,null,{"$f":"G204+G210","v":13.2},{"$f":"H204+H210","v":13.2},100]
["Прочие непрограммные расходы",null,"07","09","20 5 00 00000"]
["Мероприятия на организацию профессионального  образования"]
["и дополнительного профессионального образования выборных"]
["должностных лиц, муниципальных служащих и служащих "]
["городских и сельских поселений",null,"07","09","20 5 00 S5370",null,{"$f":"G205","v":3.8},{"$f":"H205","v":3.8},100]
["Прочая закупка товаров,работ и услуг для муниципальных нужд",null,"07","09","20 5 00 S5370","244",3.8,3.8,100]
["Субсидии бюджетам муниципальных районов и городского   "]
["округа на организацию профессионального образования"]
["и дополнительного профессионального образования "]
["выборных должностных лиц, служащих и муниципальных "]
["служащих Новгородской области",null,"07","09","20 5 00 72280",null,9.4,9.4,{"$f":"G210/H210*100","v":100}]
["Прочая закупка товаров,работ и услуг для муниципальных нужд",null,"07","09","20 5 00 72280","244",9.4,9.4,100]
["Культура, кинематография, средства "]
["массовой информации",null,"08",null,null,null,{"$f":"G214","v":2390},{"$f":"H214","v":2390},100,{"$f":"#REF!+#REF!+#REF!+#REF!","v":{"$error":"#REF!"}},{"$f":"#REF!+#REF!+#REF!+#REF!","v":{"$error":"#REF!"}}]
["Культура ",null,{"$f":"C$213","v":"08"},"01",null,null,{"$f":"G217+G222+G227","v":2390},{"$f":"H217+H222+H227","v":2390},100]
["Прочие непрограммные расходы",null,"08","01","20 5 00 00000"]
["Расходы на обеспечение деятельности (оказание услуг) "]
["муниципальных учреждений",null,"08","01","20 5 00 14000",null,2334.4,2334.4,100]
["Обеспечение деятельности муниципальных домов культуры",null,"08","01","20 5 00 14010",null,{"$f":"G221","v":2334.4},{"$f":"H221","v":2334.4},100]
["Субсидии автономным учреждениям на финансовое "]
["обеспечение муниципального задания на оказание муниципальных"]
[" услуг (выполнение работ)",null,"08","01","20 5 00 14010","621",2334.4,2334.4,100]
["Мероприятия в области культуры",null,"08","01","20 5 00 25050",null,{"$f":"G223","v":2},{"$f":"H223","v":2},100]
["Прочая закупка товаров,работ и услуг для муниципальных нужд",null,{"$f":"C$213","v":"08"},{"$f":"D214","v":"01"},"20 5 00 25050","244",2,2,100,{"$f":"#REF!","v":{"$error":"#REF!"}},{"$f":"#REF!","v":{"$error":"#REF!"}}]
["Иные межбюджетные трансферты городским и сельским "]
["поселениям области на частичную компенсацию дополни"]
["тельных расходов на повышение оплаты труда работников "]
["бюджетной сферы",null,"08","01","20 5 00 71420",null,53.6,53.6,100]
["Субсидии автономным учреждениям на финансовое "]
["обеспечение муниципального задания на оказание "]
["муниципальных услуг (выполнение работ)",null,"08","01","20 5 00 71420","621",53.6,53.6,100]
["Социальная политика",null,"10",null,null,null,{"$f":"G232","v":235.3},{"$f":"H232","v":235.3},100]
["Пенсионное обеспечение ",null,"10","01",null,null,{"$f":"+G234","v":235.3},{"$f":"+H234","v":235.3},100]
["Прочие непрограммные расходы",null,"10","01","20 5 00 00000",null,235.3,235.3,100]
["Публичные обязательства",null,"10","01","20 5 00 80000",null,{"$f":"G236","v":235.3},{"$f":"H236","v":235.3},100]
["Доплаты к пенсиям муниципальных служащих, служащих, "]
["замещавших муниципальные должности",null,"10","01","20 5 00 82100",null,{"$f":"G237","v":235.3},{"$f":"H237","v":235.3},100]
["Иные пенсии, социальные доплаты к пенсиям",null,"10","01","20 5 00 82100","312",235.3,235.3,100]
["Физическая культура и спорт ",null,"11",null,null,null,{"$f":"G239","v":33},{"$f":"H239","v":33},100,{"$f":"#REF!+#REF!+#REF!+#REF!+#REF!+J239+#REF!","v":{"$error":"#REF!"}},{"$f":"#REF!+#REF!+#REF!+#REF!+#REF!+K239+#REF!","v":{"$error":"#REF!"}}]
["Физическая культура ",null,"11","01",null,null,{"$f":"+G244","v":33},{"$f":"+H244","v":33},100,{"$f":"J240+#REF!+#REF!","v":{"$error":"#REF!"}},{"$f":"K240+#REF!+#REF!","v":{"$error":"#REF!"}}]
["Непрограммные инвестиции в основные фонды",null,{"$f":"C$238","v":"11"},{"$f":"D239","v":"01"},"102 00 00",null,{"$f":"G242","v":0},{"$f":"H242","v":0},{"$error":"#DIV/0!"},{"$f":"J242","v":0},{"$f":"K242","v":0}]
["Строительство объектов общегражданского ",null,null,null,null,null,null,null,{"$error":"#DIV/0!"}]
["назначения",null,{"$f":"C$238","v":"11"},{"$f":"D239","v":"01"},{"$f":"E240","v":"102 00 00"},"214",null,null,{"$error":"#DIV/0!"}]
["Прочие непрограммные расходы",null,"11","01","20 5 00 00000",null,33,33,100]
["Мероприятия в области физической культуры и спорта",null,"11 ","01","2050025100",null,{"$f":"G245","v":33},{"$f":"H245","v":33},100]
["Прочая закупка товаров,работ и услуг для муниципальных нужд",null,"11",{"$f":"D239","v":"01"},"2050025100","244",33,33,100,{"$f":"J246","v":0},{"$f":"K246","v":0}]
[]
[]
["ВСЕГО РАСХОДОВ:",null,null,null,null,null,{"$f":"G238+G213+G194+G168+G150+G93+G17+G105+G231","v":12018.8},{"$f":"H17+H93+H105+H150+H168+H194+H213+H231+H238","v":12011.6},100.06,{"$f":"J17+J105+#REF!+#REF!+J168+J194+J213+J238+#REF!+#REF!+#REF!","v":{"$error":"#REF!"}},{"$f":"K17+K105+#REF!+#REF!+K168+K194+K213+K238+#REF!+#REF!+#REF!","v":{"$error":"#REF!"}}]

{"sheet":"Лист1","index":1,"n_rows":0,"n_cols":0,"rows_kept":0,"cut":false,"hidden":false,"merged":[]}